[Event "Titled Tuesday Blitz May 23 Late 2023"]
[White "Dmitriev, Sergey"]
[Black "Della Corte, Alessandro"]
[WhiteFideId "14101785"]
[BlackFideId "813540"]
[WhiteElo "2132"]
[BlackElo "2205"]
[Result "0-1"]
[Round "04"]
[TimeControl "180+2"]
[Date "2023.05.23"]
[WhiteClock "0:01:17"]
[BlackClock "0:01:17"]

1. d4 {[%clk 0:03:00]}  d5 {[%clk 0:02:59]} 2. Bf4 {[%clk 0:02:58]}  Nf6 {[%clk 0:02:58]} 3. Nf3 {[%clk 0:02:58]}  c5 {[%clk 0:02:58]} 4. e3 {[%clk 0:02:57]}  Nc6 {[%clk 0:02:57]} 5. c3 {[%clk 0:02:57]}  Qb6 {[%clk 0:02:57]} 6. Qb3 {[%clk 0:02:55]}  c4 {[%clk 0:02:57]} 7. Qxb6 {[%clk 0:02:54]}  axb6 {[%clk 0:02:58]} 8. Be2 {[%clk 0:02:51]}  b5 {[%clk 0:02:57]} 9. Nbd2 {[%clk 0:02:50]}  Bf5 {[%clk 0:02:51]} 10. O-O {[%clk 0:02:49]}  b4 {[%clk 0:02:50]} 11. Ne5 {[%clk 0:02:45]}  bxc3 {[%clk 0:02:47]} 12. bxc3 {[%clk 0:02:45]}  e6 {[%clk 0:02:47]} 13. a4 {[%clk 0:02:42]}  Nxe5 {[%clk 0:02:42]} 14. Bxe5 {[%clk 0:02:37]}  Be7 {[%clk 0:02:41]} 15. f3 {[%clk 0:02:33]}  Kd7 {[%clk 0:02:33]} 16. g4 {[%clk 0:02:31]}  Bg6 {[%clk 0:02:32]} 17. h4 {[%clk 0:02:30]}  Bc2 {[%clk 0:02:26]} 18. g5 {[%clk 0:02:28]}  Nh5 {[%clk 0:02:23]} 19. f4 {[%clk 0:02:22]}  f6 {[%clk 0:02:14]} 20. Bxh5 {[%clk 0:02:16]}  fxe5 {[%clk 0:02:13]} 21. fxe5 {[%clk 0:02:08]}  Rhf8 {[%clk 0:02:13]} 22. Nb1 {[%clk 0:01:57]}  Rxf1+ {[%clk 0:02:09]} 23. Kxf1 {[%clk 0:01:55]}  Rxa4 {[%clk 0:02:01]} 24. Rxa4 {[%clk 0:01:48]}  Bxa4 {[%clk 0:02:02]} 25. Ke1 {[%clk 0:01:45]}  Bc2 {[%clk 0:02:00]} 26. Nd2 {[%clk 0:01:43]}  b5 {[%clk 0:01:59]} 27. Bd1 {[%clk 0:01:42]}  Bd3 {[%clk 0:01:58]} 28. Be2 {[%clk 0:01:40]}  Bc2 {[%clk 0:01:56]} 29. Bd1 {[%clk 0:01:40]}  Bf5 {[%clk 0:01:57]} 30. Nf3 {[%clk 0:01:34]}  b4 {[%clk 0:01:55]} 31. cxb4 {[%clk 0:01:33]}  Bxb4+ {[%clk 0:01:56]} 32. Ke2 {[%clk 0:01:32]}  Bd3+ {[%clk 0:01:55]} 33. Kf2 {[%clk 0:01:32]}  Be4 {[%clk 0:01:49]} 34. Ne1 {[%clk 0:01:32]}  Be7 {[%clk 0:01:33]} 35. Bc2 {[%clk 0:01:31]}  Bxc2 {[%clk 0:01:24]} 36. Nxc2 {[%clk 0:01:32]}  h6 {[%clk 0:01:24]} 37. gxh6 {[%clk 0:01:31]}  Bxh4+ {[%clk 0:01:25]} 38. Kf3 {[%clk 0:01:29]}  gxh6 {[%clk 0:01:26]} 39. Kg4 {[%clk 0:01:26]}  Be7 {[%clk 0:01:23]} 40. Kh5 {[%clk 0:01:25]}  Bf8 {[%clk 0:01:23]} 41. Kg6 {[%clk 0:01:24]}  c3 {[%clk 0:01:22]} 42. Kh5 {[%clk 0:01:24]}  Ke8 {[%clk 0:01:20]} 43. Kg4 {[%clk 0:01:24]}  Kf7 {[%clk 0:01:20]} 44. Kf3 {[%clk 0:01:25]}  Kg6 {[%clk 0:01:19]} 45. Kg4 {[%clk 0:01:23]}  h5+ {[%clk 0:01:18]} 46. Kh4 {[%clk 0:01:23]}  Be7+ {[%clk 0:01:19]} 47. Kh3 {[%clk 0:01:24]}  Kf5 {[%clk 0:01:19]} 48. Kg3 {[%clk 0:01:21]}  Ke4 {[%clk 0:01:19]} 49. Nb4 {[%clk 0:01:17]}  Bxb4 {[%clk 0:01:17]} 0-1


[Site "https://www.chess.com"]

[Event "Titled Tuesday Blitz May 23 Late 2023"]
[White "De Souza, Cristiano Gomes"]
[Black "Castillo Pena, Patricia Evarista"]
[WhiteFideId "2151758"]
[BlackFideId "6412106"]
[WhiteElo "2068"]
[BlackElo "1919"]
[Result "1-0"]
[Round "04"]
[TimeControl "180+2"]
[Date "2023.05.23"]
[WhiteClock "0:00:56"]
[BlackClock "0:00:11"]

1. d4 {[%clk 0:03:00]}  d5 {[%clk 0:02:59]} 2. c4 {[%clk 0:03:01]}  c6 {[%clk 0:02:58]} 3. Nf3 {[%clk 0:02:59]}  Nf6 {[%clk 0:02:58]} 4. Nc3 {[%clk 0:03:00]}  e6 {[%clk 0:02:58]} 5. Bg5 {[%clk 0:02:55]}  Nbd7 {[%clk 0:02:55]} 6. e3 {[%clk 0:02:54]}  Be7 {[%clk 0:02:55]} 7. Rc1 {[%clk 0:02:52]}  O-O {[%clk 0:02:52]} 8. Be2 {[%clk 0:02:51]}  h6 {[%clk 0:02:51]} 9. Bh4 {[%clk 0:02:44]}  b6 {[%clk 0:02:51]} 10. O-O {[%clk 0:02:33]}  Bb7 {[%clk 0:02:50]} 11. h3 {[%clk 0:02:16]}  Rc8 {[%clk 0:02:49]} 12. Bg3 {[%clk 0:02:13]}  a6 {[%clk 0:02:48]} 13. Qa4 {[%clk 0:02:09]}  c5 {[%clk 0:02:38]} 14. cxd5 {[%clk 0:02:08]}  exd5 {[%clk 0:02:20]} 15. Ne5 {[%clk 0:02:01]}  b5 {[%clk 0:02:09]} 16. Qd1 {[%clk 0:01:59]}  Nxe5 {[%clk 0:01:57]} 17. dxe5 {[%clk 0:01:51]}  Ne4 {[%clk 0:01:55]} 18. Nxe4 {[%clk 0:01:49]}  dxe4 {[%clk 0:01:55]} 19. Qc2 {[%clk 0:01:48]}  c4 {[%clk 0:01:42]} 20. Rcd1 {[%clk 0:01:46]}  Qb6 {[%clk 0:01:37]} 21. Rd7 {[%clk 0:01:41]}  Rfe8 {[%clk 0:01:24]} 22. Rfd1 {[%clk 0:01:41]}  Bc6 {[%clk 0:01:09]} 23. R7d2 {[%clk 0:01:36]}  Bb4 {[%clk 0:01:05]} 24. Rd4 {[%clk 0:01:34]}  Bc5 {[%clk 0:01:03]} 25. R4d2 {[%clk 0:01:31]}  Bb4 {[%clk 0:01:02]} 26. Rd4 {[%clk 0:01:28]}  Bc5 {[%clk 0:01:01]} 27. Rxe4 {[%clk 0:01:22]}  Bxe4 {[%clk 0:01:01]} 28. Qxe4 {[%clk 0:01:21]}  Qc6 {[%clk 0:00:51]} 29. Qb1 {[%clk 0:01:04]}  Bf8 {[%clk 0:00:47]} 30. Bf3 {[%clk 0:01:03]}  Qe6 {[%clk 0:00:38]} 31. Bd5 {[%clk 0:01:01]}  Qb6 {[%clk 0:00:31]} 32. Qf5 {[%clk 0:00:58]}  Re7 {[%clk 0:00:11]} 33. Qxc8 {[%clk 0:00:56]} 1-0


[Site "https://www.chess.com"]

[Event "Titled Tuesday Blitz May 23 Late 2023"]
[White "Xiong, Jeffery"]
[Black "Nihal Sarin"]
[WhiteFideId "2047640"]
[BlackFideId "25092340"]
[WhiteElo "2726"]
[BlackElo "2689"]
[Result "0-1"]
[Round "05"]
[TimeControl "180+2"]
[Date "2023.05.23"]
[WhiteClock "0:00:09"]
[BlackClock "0:00:05"]

1. e4 {[%clk 0:03:00]}  c6 {[%clk 0:02:54]} 2. Nf3 {[%clk 0:03:00]}  d5 {[%clk 0:02:52]} 3. d3 {[%clk 0:03:01]}  f6 {[%clk 0:02:42]} 4. exd5 {[%clk 0:02:47]}  cxd5 {[%clk 0:02:43]} 5. d4 {[%clk 0:02:47]}  Bg4 {[%clk 0:02:36]} 6. h3 {[%clk 0:02:43]}  Bh5 {[%clk 0:02:35]} 7. Be2 {[%clk 0:02:38]}  Nc6 {[%clk 0:02:34]} 8. O-O {[%clk 0:02:38]}  e6 {[%clk 0:02:35]} 9. Re1 {[%clk 0:02:36]}  Bd6 {[%clk 0:02:33]} 10. c4 {[%clk 0:02:36]}  Nge7 {[%clk 0:02:33]} 11. Nc3 {[%clk 0:02:36]}  O-O {[%clk 0:02:33]} 12. a3 {[%clk 0:02:21]}  Kh8 {[%clk 0:02:30]} 13. c5 {[%clk 0:02:09]}  Bc7 {[%clk 0:02:30]} 14. b4 {[%clk 0:02:09]}  a6 {[%clk 0:02:30]} 15. Rb1 {[%clk 0:01:42]}  e5 {[%clk 0:02:25]} 16. Nxe5 {[%clk 0:01:30]}  fxe5 {[%clk 0:02:22]} 17. Bxh5 {[%clk 0:01:30]}  Nxd4 {[%clk 0:02:22]} 18. Bg5 {[%clk 0:01:29]}  g6 {[%clk 0:01:55]} 19. Bxe7 {[%clk 0:01:22]}  Qxe7 {[%clk 0:01:56]} 20. Nxd5 {[%clk 0:01:23]}  Qf7 {[%clk 0:00:52]} 21. Nxc7 {[%clk 0:01:22]}  Rad8 {[%clk 0:00:53]} 22. Bg4 {[%clk 0:00:44]}  h5 {[%clk 0:00:53]} 23. Bf3 {[%clk 0:00:37]}  Qxc7 {[%clk 0:00:52]} 24. Qc1 {[%clk 0:00:32]}  Rxf3 {[%clk 0:00:44]} 25. Qh6+ {[%clk 0:00:32]}  Qh7 {[%clk 0:00:30]} 26. Qxh7+ {[%clk 0:00:32]}  Kxh7 {[%clk 0:00:31]} 27. gxf3 {[%clk 0:00:33]}  Nxf3+ {[%clk 0:00:32]} 28. Kg2 {[%clk 0:00:33]}  Nxe1+ {[%clk 0:00:31]} 29. Rxe1 {[%clk 0:00:34]}  Rd5 {[%clk 0:00:29]} 30. Kf3 {[%clk 0:00:29]}  Kg7 {[%clk 0:00:29]} 31. Ke4 {[%clk 0:00:30]}  Rd8 {[%clk 0:00:23]} 32. Rc1 {[%clk 0:00:28]}  Kf6 {[%clk 0:00:08]} 33. c6 {[%clk 0:00:28]}  Rd4+ {[%clk 0:00:09]} 34. Ke3 {[%clk 0:00:29]}  bxc6 {[%clk 0:00:09]} 35. Rxc6+ {[%clk 0:00:29]}  Kf5 {[%clk 0:00:10]} 36. Rxa6 {[%clk 0:00:30]}  Rh4 {[%clk 0:00:11]} 37. b5 {[%clk 0:00:30]}  Rxh3+ {[%clk 0:00:12]} 38. Ke2 {[%clk 0:00:28]}  Rb3 {[%clk 0:00:11]} 39. a4 {[%clk 0:00:28]}  h4 {[%clk 0:00:11]} 40. Kf1 {[%clk 0:00:21]}  g5 {[%clk 0:00:08]} 41. b6 {[%clk 0:00:19]}  Kg4 {[%clk 0:00:04]} 42. Kg2 {[%clk 0:00:18]}  h3+ {[%clk 0:00:04]} 43. Kh2 {[%clk 0:00:19]}  Rb2 {[%clk 0:00:05]} 44. Kg1 {[%clk 0:00:15]}  Rb1+ {[%clk 0:00:05]} 45. Kh2 {[%clk 0:00:16]}  Rb2 {[%clk 0:00:06]} 46. Kg1 {[%clk 0:00:16]}  e4 {[%clk 0:00:06]} 47. a5 {[%clk 0:00:09]}  e3 {[%clk 0:00:05]} 0-1


[Site "https://www.chess.com"]

[Event "Titled Tuesday Blitz May 23 Late 2023"]
[White "Caruana, Fabiano"]
[Black "Baskakov, Egor"]
[WhiteFideId "2020009"]
[BlackFideId "24197866"]
[WhiteElo "2837"]
[BlackElo "2225"]
[Result "1-0"]
[Round "05"]
[TimeControl "180+2"]
[Date "2023.05.23"]
[WhiteClock "0:00:09"]
[BlackClock "0:00:01"]

1. d4 {[%clk 0:03:00]}  Nf6 {[%clk 0:02:59]} 2. Nf3 {[%clk 0:03:01]}  e6 {[%clk 0:02:59]} 3. g3 {[%clk 0:03:01]}  d5 {[%clk 0:03:00]} 4. Bg2 {[%clk 0:03:01]}  Be7 {[%clk 0:03:01]} 5. O-O {[%clk 0:03:01]}  O-O {[%clk 0:03:02]} 6. c4 {[%clk 0:03:01]}  Ne4 {[%clk 0:03:03]} 7. Qc2 {[%clk 0:02:58]}  f5 {[%clk 0:03:03]} 8. b3 {[%clk 0:02:55]}  c6 {[%clk 0:03:02]} 9. Ba3 {[%clk 0:02:55]}  Bd7 {[%clk 0:02:59]} 10. Bxe7 {[%clk 0:02:55]}  Qxe7 {[%clk 0:03:00]} 11. Nc3 {[%clk 0:02:54]}  Be8 {[%clk 0:03:00]} 12. Ne5 {[%clk 0:02:51]}  Nd7 {[%clk 0:02:59]} 13. Nxd7 {[%clk 0:02:49]}  Qxd7 {[%clk 0:02:59]} 14. e3 {[%clk 0:02:47]}  g5 {[%clk 0:02:54]} 15. f4 {[%clk 0:02:45]}  gxf4 {[%clk 0:02:50]} 16. Rxf4 {[%clk 0:02:44]}  Bg6 {[%clk 0:02:49]} 17. Nxe4 {[%clk 0:02:41]}  fxe4 {[%clk 0:02:48]} 18. Raf1 {[%clk 0:02:41]}  Rxf4 {[%clk 0:02:49]} 19. Rxf4 {[%clk 0:02:42]}  Rf8 {[%clk 0:02:48]} 20. Qf2 {[%clk 0:02:35]}  Qe7 {[%clk 0:02:47]} 21. Bh3 {[%clk 0:02:31]}  Rxf4 {[%clk 0:02:29]} 22. Qxf4 {[%clk 0:02:32]}  Bf7 {[%clk 0:02:30]} 23. c5 {[%clk 0:02:32]}  b6 {[%clk 0:02:23]} 24. b4 {[%clk 0:02:14]}  bxc5 {[%clk 0:02:17]} 25. bxc5 {[%clk 0:02:14]}  Kg7 {[%clk 0:02:17]} 26. Kg2 {[%clk 0:02:05]}  Qf6 {[%clk 0:02:13]} 27. Bg4 {[%clk 0:01:34]}  Qxf4 {[%clk 0:01:58]} 28. exf4 {[%clk 0:01:35]}  Kf6 {[%clk 0:01:49]} 29. Be2 {[%clk 0:01:35]}  a5 {[%clk 0:01:46]} 30. g4 {[%clk 0:01:31]}  h6 {[%clk 0:01:35]} 31. h4 {[%clk 0:01:31]}  Bg6 {[%clk 0:01:34]} 32. Kf2 {[%clk 0:01:28]}  Ke7 {[%clk 0:01:31]} 33. h5 {[%clk 0:01:18]}  Be8 {[%clk 0:01:25]} 34. g5 {[%clk 0:01:18]}  Kf7 {[%clk 0:01:20]} 35. Ke3 {[%clk 0:00:25]}  Kg7 {[%clk 0:01:10]} 36. Kd2 {[%clk 0:00:25]}  Kf8 {[%clk 0:00:57]} 37. Kc3 {[%clk 0:00:25]}  Kg7 {[%clk 0:00:57]} 38. Kb3 {[%clk 0:00:25]}  hxg5 {[%clk 0:00:32]} 39. fxg5 {[%clk 0:00:25]}  e5 {[%clk 0:00:33]} 40. Kc3 {[%clk 0:00:18]}  exd4+ {[%clk 0:00:32]} 41. Kxd4 {[%clk 0:00:19]}  Bf7 {[%clk 0:00:29]} 42. Ke5 {[%clk 0:00:19]}  Be8 {[%clk 0:00:29]} 43. a3 {[%clk 0:00:19]}  Bf7 {[%clk 0:00:20]} 44. Kf5 {[%clk 0:00:19]}  Be8 {[%clk 0:00:19]} 45. Kf4 {[%clk 0:00:17]}  Bf7 {[%clk 0:00:16]} 46. Ke5 {[%clk 0:00:17]}  Be8 {[%clk 0:00:16]} 47. Bg4 {[%clk 0:00:17]}  Bf7 {[%clk 0:00:13]} 48. h6+ {[%clk 0:00:13]}  Kh7 {[%clk 0:00:08]} 49. Kd4 {[%clk 0:00:11]}  Kg6 {[%clk 0:00:03]} 50. Bh5+ {[%clk 0:00:09]}  Kxg5 {[%clk 0:00:01]} 51. h7 {[%clk 0:00:09]} 1-0


[Site "https://www.chess.com"]

[Event "Titled Tuesday Blitz May 23 Late 2023"]
[White "Bortnyk, Olexandr"]
[Black "Sychev, Klementy"]
[WhiteFideId "14120828"]
[BlackFideId "4114060"]
[WhiteElo "2734"]
[BlackElo "2583"]
[Result "1-0"]
[Round "05"]
[TimeControl "180+2"]
[Date "2023.05.23"]
[WhiteClock "0:00:13"]
[BlackClock "0:00:00"]

1. d4 {[%clk 0:03:00]}  d5 {[%clk 0:02:59]} 2. Nc3 {[%clk 0:03:00]}  Bf5 {[%clk 0:03:00]} 3. f3 {[%clk 0:02:57]}  Bg6 {[%clk 0:03:00]} 4. h4 {[%clk 0:02:57]}  h6 {[%clk 0:02:50]} 5. Bf4 {[%clk 0:02:56]}  c6 {[%clk 0:02:25]} 6. h5 {[%clk 0:02:48]}  Bh7 {[%clk 0:02:25]} 7. e3 {[%clk 0:02:47]}  Nd7 {[%clk 0:02:17]} 8. Bd3 {[%clk 0:02:45]}  Bxd3 {[%clk 0:02:16]} 9. cxd3 {[%clk 0:02:45]}  Ngf6 {[%clk 0:02:06]} 10. Nge2 {[%clk 0:02:38]}  e6 {[%clk 0:02:03]} 11. a3 {[%clk 0:02:37]}  Be7 {[%clk 0:01:50]} 12. g4 {[%clk 0:02:36]}  a6 {[%clk 0:01:47]} 13. Kf2 {[%clk 0:02:33]}  Nh7 {[%clk 0:01:36]} 14. Qb3 {[%clk 0:02:25]}  Ra7 {[%clk 0:01:20]} 15. Bg3 {[%clk 0:02:02]}  O-O {[%clk 0:01:18]} 16. Kg2 {[%clk 0:01:57]}  Re8 {[%clk 0:01:01]} 17. Rac1 {[%clk 0:01:48]}  Bf8 {[%clk 0:01:02]} 18. Nd1 {[%clk 0:01:43]}  e5 {[%clk 0:00:59]} 19. dxe5 {[%clk 0:01:30]}  Nxe5 {[%clk 0:01:00]} 20. d4 {[%clk 0:01:31]}  Nc4 {[%clk 0:00:57]} 21. e4 {[%clk 0:01:22]}  dxe4 {[%clk 0:00:23]} 22. Qxc4 {[%clk 0:01:21]}  exf3+ {[%clk 0:00:22]} 23. Kxf3 {[%clk 0:01:22]}  b5 {[%clk 0:00:17]} 24. Qb3 {[%clk 0:00:45]}  Ng5+ {[%clk 0:00:16]} 25. Kf2 {[%clk 0:00:44]}  c5 {[%clk 0:00:16]} 26. Bf4 {[%clk 0:00:31]}  c4 {[%clk 0:00:11]} 27. Qc2 {[%clk 0:00:27]}  Ne4+ {[%clk 0:00:08]} 28. Kg1 {[%clk 0:00:23]}  Qd7 {[%clk 0:00:08]} 29. Ne3 {[%clk 0:00:23]}  Bd6 {[%clk 0:00:06]} 30. Rf1 {[%clk 0:00:22]}  Ng5 {[%clk 0:00:06]} 31. Bxg5 {[%clk 0:00:19]}  hxg5 {[%clk 0:00:06]} 32. Nf5 {[%clk 0:00:20]}  Bf8 {[%clk 0:00:06]} 33. Rh2 {[%clk 0:00:20]}  Qd8 {[%clk 0:00:05]} 34. Rhf2 {[%clk 0:00:20]}  Rd7 {[%clk 0:00:05]} 35. Nc3 {[%clk 0:00:18]}  Qa8 {[%clk 0:00:04]} 36. Qd1 {[%clk 0:00:17]}  Qb7 {[%clk 0:00:03]} 37. Qf3 {[%clk 0:00:17]}  Qb8 {[%clk 0:00:04]} 38. Kg2 {[%clk 0:00:16]}  a5 {[%clk 0:00:04]} 39. Qc6 {[%clk 0:00:16]}  Qd8 {[%clk 0:00:02]} 40. Qxb5 {[%clk 0:00:16]}  Qc8 {[%clk 0:00:01]} 41. d5 {[%clk 0:00:15]}  Rb7 {[%clk 0:00:01]} 42. Qxa5 {[%clk 0:00:14]}  Qb8 {[%clk 0:00:01]} 43. Qa6 {[%clk 0:00:12]}  Rxb2 {[%clk 0:00:00]} 44. Qxc4 {[%clk 0:00:13]} 1-0


[Site "https://www.chess.com"]

[Event "Titled Tuesday Blitz May 23 Late 2023"]
[White "Sarana, Alexey"]
[Black "Remizov, Yaroslav"]
[WhiteFideId "24133795"]
[BlackFideId "34134015"]
[WhiteElo "2714"]
[BlackElo "2400"]
[Result "1/2-1/2"]
[Round "05"]
[TimeControl "180+2"]
[Date "2023.05.23"]
[WhiteClock "0:00:08"]
[BlackClock "0:00:12"]

1. d4 {[%clk 0:03:00]}  d5 {[%clk 0:02:58]} 2. c4 {[%clk 0:03:01]}  e6 {[%clk 0:02:58]} 3. Nf3 {[%clk 0:02:59]}  Nf6 {[%clk 0:02:55]} 4. Nc3 {[%clk 0:03:00]}  c6 {[%clk 0:02:55]} 5. e3 {[%clk 0:02:56]}  Nbd7 {[%clk 0:02:54]} 6. Bd3 {[%clk 0:02:57]}  dxc4 {[%clk 0:02:53]} 7. Bxc4 {[%clk 0:02:58]}  b5 {[%clk 0:02:50]} 8. Bd3 {[%clk 0:02:58]}  Bd6 {[%clk 0:02:50]} 9. Qc2 {[%clk 0:02:54]}  Bb7 {[%clk 0:02:46]} 10. e4 {[%clk 0:02:50]}  e5 {[%clk 0:02:42]} 11. Bg5 {[%clk 0:02:50]}  O-O {[%clk 0:02:35]} 12. dxe5 {[%clk 0:02:28]}  Nxe5 {[%clk 0:02:33]} 13. Nxe5 {[%clk 0:02:28]}  Bxe5 {[%clk 0:02:29]} 14. f4 {[%clk 0:02:29]}  Bxc3+ {[%clk 0:01:58]} 15. bxc3 {[%clk 0:02:25]}  Qb6 {[%clk 0:01:49]} 16. Qf2 {[%clk 0:01:40]}  Nxe4 {[%clk 0:01:35]} 17. Bxe4 {[%clk 0:00:51]}  Rfe8 {[%clk 0:01:34]} 18. O-O {[%clk 0:00:51]}  Rxe4 {[%clk 0:01:31]} 19. f5 {[%clk 0:00:49]}  f6 {[%clk 0:01:27]} 20. Bc1 {[%clk 0:00:41]}  Rae8 {[%clk 0:01:19]} 21. Qxb6 {[%clk 0:00:34]}  axb6 {[%clk 0:01:19]} 22. Bd2 {[%clk 0:00:34]}  c5 {[%clk 0:01:14]} 23. Rae1 {[%clk 0:00:29]}  Ra8 {[%clk 0:01:00]} 24. Ra1 {[%clk 0:00:20]}  Rea4 {[%clk 0:00:56]} 25. Rfe1 {[%clk 0:00:17]}  Rxa2 {[%clk 0:00:54]} 26. Rxa2 {[%clk 0:00:12]}  Rxa2 {[%clk 0:00:55]} 27. Bf4 {[%clk 0:00:13]}  Rxg2+ {[%clk 0:00:47]} 28. Kf1 {[%clk 0:00:13]}  h5 {[%clk 0:00:41]} 29. Re6 {[%clk 0:00:13]}  Rc2 {[%clk 0:00:34]} 30. Rxb6 {[%clk 0:00:10]}  Be4 {[%clk 0:00:34]} 31. Ke1 {[%clk 0:00:10]}  Rxc3 {[%clk 0:00:29]} 32. Rxb5 {[%clk 0:00:09]}  Bxf5 {[%clk 0:00:29]} 33. Bd6 {[%clk 0:00:09]}  Rc1+ {[%clk 0:00:13]} 34. Kd2 {[%clk 0:00:07]}  Rc2+ {[%clk 0:00:13]} 35. Kd1 {[%clk 0:00:07]}  Bd3 {[%clk 0:00:08]} 36. Rxc5 {[%clk 0:00:06]}  Rxc5 {[%clk 0:00:09]} 37. Bxc5 {[%clk 0:00:07]}  Kf7 {[%clk 0:00:09]} 38. Ke1 {[%clk 0:00:08]}  g5 {[%clk 0:00:09]} 39. Kf2 {[%clk 0:00:08]}  Kg6 {[%clk 0:00:09]} 40. Bb6 {[%clk 0:00:08]}  Bb5 {[%clk 0:00:09]} 41. Bd8 {[%clk 0:00:09]}  f5 {[%clk 0:00:09]} 42. Bc7 {[%clk 0:00:09]}  h4 {[%clk 0:00:08]} 43. Bd8 {[%clk 0:00:10]}  Kh5 {[%clk 0:00:08]} 44. Be7 {[%clk 0:00:10]}  Bd7 {[%clk 0:00:07]} 45. Bd8 {[%clk 0:00:11]}  f4 {[%clk 0:00:07]} 46. Bc7 {[%clk 0:00:08]}  Kg4 {[%clk 0:00:07]} 47. Bd6 {[%clk 0:00:08]}  Kh3 {[%clk 0:00:07]} 48. Kg1 {[%clk 0:00:07]}  f3 {[%clk 0:00:07]} 49. Kf2 {[%clk 0:00:03]}  Bc6 {[%clk 0:00:07]} 50. Bc7 {[%clk 0:00:03]}  Bd5 {[%clk 0:00:06]} 51. Bb8 {[%clk 0:00:04]}  Kg4 {[%clk 0:00:06]} 52. Bc7 {[%clk 0:00:04]}  Kf5 {[%clk 0:00:07]} 53. Bd8 {[%clk 0:00:04]}  Kf4 {[%clk 0:00:07]} 54. Be7 {[%clk 0:00:04]}  Kg4 {[%clk 0:00:07]} 55. Bd8 {[%clk 0:00:04]}  Be4 {[%clk 0:00:07]} 56. Be7 {[%clk 0:00:05]}  Bb7 {[%clk 0:00:07]} 57. Bd8 {[%clk 0:00:05]}  Kf4 {[%clk 0:00:08]} 58. Be7 {[%clk 0:00:05]}  Kf5 {[%clk 0:00:08]} 59. Bd8 {[%clk 0:00:06]}  Bc6 {[%clk 0:00:08]} 60. Be7 {[%clk 0:00:06]}  g4 {[%clk 0:00:08]} 61. Bxh4 {[%clk 0:00:06]}  Kf4 {[%clk 0:00:08]} 62. Bg3+ {[%clk 0:00:07]}  Kf5 {[%clk 0:00:09]} 63. Bb8 {[%clk 0:00:08]}  Bd5 {[%clk 0:00:09]} 64. Bc7 {[%clk 0:00:06]}  Bc6 {[%clk 0:00:10]} 65. Bb8 {[%clk 0:00:07]}  Bd5 {[%clk 0:00:11]} 66. Bc7 {[%clk 0:00:07]}  Bc6 {[%clk 0:00:12]} 67. Bb8 {[%clk 0:00:08]} 1/2-1/2


[Site "https://www.chess.com"]

[Event "Titled Tuesday Blitz May 23 Late 2023"]
[White "Paravyan, David"]
[Black "Rustemov, Alexander"]
[WhiteFideId "4194985"]
[BlackFideId "4119002"]
[WhiteElo "2563"]
[BlackElo "2862"]
[Result "1-0"]
[Round "05"]
[TimeControl "180+2"]
[Date "2023.05.23"]
[WhiteClock "0:01:01"]
[BlackClock "0:00:00"]

1. e4 {[%clk 0:03:00]}  e6 {[%clk 0:03:00]} 2. d4 {[%clk 0:03:00]}  d5 {[%clk 0:03:01]} 3. Nd2 {[%clk 0:03:01]}  dxe4 {[%clk 0:03:02]} 4. Nxe4 {[%clk 0:03:02]}  Bd7 {[%clk 0:03:02]} 5. Nf3 {[%clk 0:03:02]}  Bc6 {[%clk 0:03:03]} 6. Bd3 {[%clk 0:03:03]}  Nd7 {[%clk 0:03:04]} 7. O-O {[%clk 0:03:02]}  Ngf6 {[%clk 0:03:04]} 8. Ng3 {[%clk 0:03:02]}  Be7 {[%clk 0:03:04]} 9. a4 {[%clk 0:03:00]}  O-O {[%clk 0:03:02]} 10. a5 {[%clk 0:03:00]}  b6 {[%clk 0:02:48]} 11. Bd2 {[%clk 0:03:00]}  Rc8 {[%clk 0:02:38]} 12. Re1 {[%clk 0:03:00]}  Bb7 {[%clk 0:02:37]} 13. a6 {[%clk 0:03:00]}  Ba8 {[%clk 0:02:37]} 14. c3 {[%clk 0:02:21]}  c5 {[%clk 0:02:37]} 15. Bb5 {[%clk 0:02:22]}  Qc7 {[%clk 0:02:31]} 16. Rc1 {[%clk 0:02:17]}  Rfd8 {[%clk 0:02:26]} 17. Qe2 {[%clk 0:02:16]}  Bc6 {[%clk 0:02:11]} 18. h3 {[%clk 0:02:15]}  h6 {[%clk 0:02:10]} 19. Be3 {[%clk 0:02:12]}  Bxb5 {[%clk 0:02:04]} 20. Qxb5 {[%clk 0:02:13]}  Qc6 {[%clk 0:02:04]} 21. Qxc6 {[%clk 0:02:11]}  Rxc6 {[%clk 0:02:04]} 22. c4 {[%clk 0:02:09]}  Rdc8 {[%clk 0:01:50]} 23. b3 {[%clk 0:02:08]}  R6c7 {[%clk 0:01:42]} 24. Bf4 {[%clk 0:02:07]}  Nb8 {[%clk 0:01:13]} 25. Bxc7 {[%clk 0:02:06]}  Rxc7 {[%clk 0:01:14]} 26. Ra1 {[%clk 0:02:07]}  Nc6 {[%clk 0:01:11]} 27. Red1 {[%clk 0:02:06]}  cxd4 {[%clk 0:01:00]} 28. Nxd4 {[%clk 0:02:07]}  Nxd4 {[%clk 0:01:00]} 29. Rxd4 {[%clk 0:02:06]}  Kf8 {[%clk 0:01:00]} 30. Ne2 {[%clk 0:02:05]}  Bc5 {[%clk 0:00:59]} 31. Rd8+ {[%clk 0:01:38]}  Ke7 {[%clk 0:00:59]} 32. Rb8 {[%clk 0:01:39]}  Ne4 {[%clk 0:00:59]} 33. Rd1 {[%clk 0:01:18]}  Nxf2 {[%clk 0:00:55]} 34. Rdd8 {[%clk 0:01:19]}  Ne4+ {[%clk 0:00:53]} 35. Kf1 {[%clk 0:01:17]}  Bd6 {[%clk 0:00:36]} 36. Re8+ {[%clk 0:01:13]}  Kf6 {[%clk 0:00:35]} 37. Rbc8 {[%clk 0:01:01]}  Nd2+ {[%clk 0:00:34]} 38. Ke1 {[%clk 0:01:01]}  Nxb3 {[%clk 0:00:34]} 39. Rxc7 {[%clk 0:01:02]}  Bxc7 {[%clk 0:00:34]} 40. Ra8 {[%clk 0:01:02]}  Be5 {[%clk 0:00:11]} 41. Rxa7 {[%clk 0:01:02]}  Nc5 {[%clk 0:00:06]} 42. Rxf7+ {[%clk 0:00:59]}  Kxf7 {[%clk 0:00:03]} 43. a7 {[%clk 0:01:00]}  Nd3+ {[%clk 0:00:00]} 44. Kf1 {[%clk 0:01:01]} 1-0


[Site "https://www.chess.com"]